bitfinex/quotes_ETHUSD_20250908
["timestamp","ask_amount","ask_price","bid_price","bid_amount"]
[1757328770216,11.26464818,4333.9,4333.8,1e-08]
[1757328770580,11.26464818,4333.9,4333.8,0.29710001]
[1757328771088,11.26464818,4333.9,4333.8,1e-08]
[1757328772208,11.26464818,4333.9,4333.8,0.29710001]
[1757328773300,17.70462621,4333.9,4333.8,1e-08]
[1757328773474,18.65042621,4333.9,4333.8,1e-08]
[1757328774518,18.15716963,4333.9,4333.8,1e-08]
[1757328774836,18.65535665,4333.9,4333.8,1e-08]
[1757328775385,17.40855665,4333.9,4333.8,1e-08]
[1757328776033,18.20145665,4333.9,4333.8,1e-08]
[1757328776219,18.67085665,4333.9,4333.8,1e-08]
[1757328776423,11.26957862,4333.9,4333.8,0.30080001]
[1757328777441,11.26983386,4333.9,4333.8,0.30080001]
[1757328778354,9.00192589,4333.9,4333.8,0.73650001]
[1757328778633,9.00192589,4333.9,4333.8,1.19590001]
[1757328779014,9.00192589,4333.9,4333.8,0.30080001]
[1757328779825,8.99392589,4333.9,4333.8,1.19590001]
[1757328780458,0.84355017,4333.9,4333.8,1.19590001]
[1757328780654,6.55763596,4334.4,4333.9,0.792]
[1757328780821,3.905,4334.3,4334.0,0.8951]
[1757328781146,2.30729218,4334.1,4333.9,0.792]
[1757328781524,2.30729218,4334.1,4334.0,1.0928]
[1757328781734,2.30649218,4334.1,4334.0,1.9879]
[1757328782517,2.30649218,4334.1,4334.0,1.1959]
[1757328783151,2.30724533,4334.2,4334.0,1.1959]
[1757328783444,2.30728409,4334.1,4334.0,0.99382711]
[1757328783657,2.42243847,4334.2,4334.0,0.99382711]
[1757328783815,2.30728409,4334.1,4334.0,0.99382711]
[1757328784644,2.30728409,4334.1,4334.0,1.88892711]
[1757328785726,2.42243385,4334.2,4334.0,1.88892711]
[1757328785925,2.42243385,4334.2,4334.1,0.8951]
[1757328786326,2.42243385,4334.2,4334.1,1.1959]
[1757328786716,2.42243385,4334.2,4334.1,1.88892711]
[1757328789442,0.1152,4334.2,4334.1,1.88892711]
[1757328789646,2.42243086,4334.2,4334.1,1.1959]
[1757328791965,0.1152,4334.2,4334.1,1.1959]
[1757328793664,0.1162,4334.6,4334.2,0.792]
[1757328793967,0.1162,4334.6,4334.5,0.3008]
[1757328794462,0.1162,4334.6,4334.5,1.1959]
[1757328794463,2.42321794,4334.6,4334.5,1.1959]
[1757328794864,2.42321794,4334.6,4334.5,0.7365]
[1757328797332,2.42321794,4334.6,4334.4,0.69294387]
[1757328797333,2.30707117,4334.5,4334.4,0.69294387]
[1757328797536,2.30726934,4334.2,4334.0,3.0]
[1757328797736,2.42246934,4334.2,4334.1,0.3008]
[1757328797954,2.42246934,4334.2,4334.1,0.7365]
[1757328798342,0.4317,4334.2,4334.0,0.6930255]
[1757328798537,2.30728409,4334.1,4333.9,1.773]
[1757328799565,2.30733733,4334.0,4333.9,1.773]
[1757328799748,2.30733733,4334.0,4333.9,2.0738]
[1757328800363,2.30733733,4334.0,4333.9,0.3008]
[1757328801948,2.30729256,4334.1,4333.9,0.3008]
[1757328803267,2.30733733,4334.0,4333.9,0.3008]
[1757328803584,2.30729742,4334.1,4333.9,0.3008]
[1757328803883,2.3071244,4334.4,4334.0,0.4602]
[1757328804054,6.20608776,4334.5,4334.0,0.4602]
[1757328804255,3.899,4334.5,4334.3,0.2883]
[1757328804457,2.3071244,4334.4,4334.3,0.2883]
[1757328804652,6.20608209,4334.5,4334.3,0.2883]
[1757328804862,0.1152,4334.4,4334.3,0.7422]
[1757328805068,0.1152,4334.4,4334.3,1.2024]
[1757328805269,0.001,4334.6,4334.4,3.792]
[1757328805463,0.001,4334.6,4334.4,1.2459]
[1757328805676,0.001,4334.6,4334.5,0.7485]
[1757328807105,0.0002,4334.6,4334.5,0.7485]
[1757328809408,0.0002,4334.6,4334.5,1.2024]
[1757328811706,0.0002,4334.6,4334.5,0.2883]
[1757328816101,0.0002,4334.6,4334.5,5.54223883]
[1757328816407,0.0002,4334.6,4334.5,6.11763883]
[1757328817911,0.316,4334.6,4334.5,0.1152]
[1757328818125,0.0002,4334.6,4334.5,0.4035]
[1757328818879,0.0002,4334.6,4334.5,4.3176]
[1757328819084,0.0002,4334.6,4334.5,11.33774188]
[1757328819390,0.0002,4334.6,4334.5,11.31467117]
[1757328819580,0.0002,4334.6,4334.5,10.38130782]
[1757328820202,0.0002,4334.6,4334.5,12.68837899]
[1757328820426,0.0002,4334.6,4334.5,12.80357899]
[1757328821081,0.0002,4334.6,4334.5,10.49650782]
[1757328821326,0.0002,4334.6,4334.5,10.04260782]
[1757328821881,0.0002,4334.6,4334.5,5.68440782]
[1757328822214,0.0002,4334.6,4334.5,8.2087]
[1757328822912,0.0002,4334.6,4334.5,4.3107]
[1757328823113,0.0002,4334.6,4334.5,8.2107]
[1757328823493,0.0002,4334.6,4334.5,8.2097]
[1757328824011,0.0002,4334.6,4334.5,8.0945]
[1757328826124,0.0002,4334.6,4334.5,7.0142]
[1757328826779,0.0002,4334.6,4334.5,7.3025]
[1757328827539,0.0002,4334.6,4334.5,8.5547]
[1757328827761,0.0002,4334.6,4334.5,9.87509167]
[1757328828410,0.316,4334.6,4334.5,9.12659167]
[1757328828938,0.0002,4334.6,4334.5,9.41489167]
[1757328829743,0.0002,4334.6,4334.5,9.12659167]
[1757328829955,0.0002,4334.6,4334.5,7.8062]
[1757328831016,0.316,4334.6,4334.5,7.0142]
[1757328832031,0.0002,4334.6,4334.5,7.0142]
[1757328832550,0.1146,4334.7,4334.6,3.0]
[1757328832732,2.42156472,4334.7,4334.6,3.0]
[1757328832926,0.4304,4334.7,4334.6,3.0]
[1757328834716,2.73736472,4334.7,4334.6,3.0]
[1757328835142,0.4304,4334.7,4334.6,3.0]
[1757328836228,2.73736472,4334.7,4334.6,3.0]
[1757328837032,2.73736472,4334.7,4334.6,3.0]
[1757328837232,0.4304,4334.7,4334.6,3.0]
[1757328837432,0.1146,4334.7,4334.5,0.1172]
[1757328837654,2.42156472,4334.7,4334.6,3.897]
[1757328838560,2.42156472,4334.7,4334.6,4.2047]
[1757328839061,2.42156472,4334.7,4334.6,3.897]
[1757328839360,0.1146,4334.7,4334.6,3.897]
[1757328840449,2.72166472,4334.7,4334.6,3.897]
[1757328841464,2.72266472,4334.7,4334.6,3.897]
[1757328842041,0.4157,4334.7,4334.6,3.897]
[1757328842357,2.72266472,4334.7,4334.6,3.897]
[1757328842558,0.4157,4334.7,4334.6,6.896]
[1757328843360,3.66466472,4334.7,4334.6,6.896]
[1757328843562,3.66466472,4334.7,4334.6,3.0]
[1757328843866,3.66466472,4334.7,4334.6,6.896]
[1757328844564,3.66466472,4334.7,4334.6,3.0]
[1757328844742,3.66466472,4334.7,4334.6,6.896]
[1757328847169,3.66466472,4334.7,4334.6,3.0]
[1757328847524,2.91606472,4334.7,4334.6,3.0]
[1757328850466,2.30701794,4334.6,4334.5,0.002]
[1757328850865,2.80051794,4334.6,4334.5,0.002]
[1757328852633,3.54911794,4334.6,4334.5,0.002]
[1757328855513,7.44411794,4334.6,4334.5,0.002]
[1757328856078,8.15831248,4334.6,4334.5,0.002]
[1757328856407,10.11325367,4334.6,4334.5,0.002]
[1757328856571,10.11320402,4334.6,4334.5,0.002]
[1757328857947,10.11240402,4334.6,4334.5,0.002]
[1757328858399,10.24200867,4334.6,4334.5,0.002]
[1757328860750,16.38127311,4334.6,4334.5,0.002]
[1757328861148,16.47370362,4334.6,4334.5,0.002]
[1757328861356,19.47370362,4334.6,4334.5,0.002]
[1757328861770,13.33443918,4334.6,4334.5,0.002]
[1757328862167,19.47370362,4334.6,4334.5,0.002]
[1757328862797,13.33443918,4334.6,4334.5,0.002]
[1757328863164,9.43943918,4334.6,4334.5,0.002]
[1757328863509,13.33443918,4334.6,4334.5,0.002]
[1757328865598,19.47370362,4334.6,4334.5,0.002]
[1757328866395,2.30728409,4334.1,4334.0,1e-08]
[1757328866569,14.7921072,4334.1,4334.0,1e-08]
[1757328866764,16.49074299,4334.1,4334.0,1e-08]
[1757328869923,16.06074299,4334.1,4334.0,1e-08]
[1757328870087,16.49074299,4334.1,4334.0,1e-08]
[1757328872606,15.29014299,4334.1,4334.0,1e-08]
[1757328873586,11.39514299,4334.1,4334.0,1e-08]
[1757328873782,11.39514299,4334.1,4334.0,0.29980001]
[1757328873987,15.29014299,4334.1,4334.0,0.75320001]
[1757328874596,11.39514299,4334.1,4334.0,0.75320001]
[1757328874802,15.28960589,4334.1,4334.0,0.75320001]
[1757328875175,15.8059981,4334.1,4334.0,0.75320001]
[1757328875913,11.9109981,4334.1,4334.0,0.29980001]
[1757328876103,11.9109981,4334.1,4334.0,1e-08]
[1757328876104,15.8059981,4334.1,4334.0,1e-08]
[1757328876301,16.1139981,4334.1,4334.0,1e-08]
[1757328876503,16.1139981,4334.1,4332.5,0.45540001]
[1757328876504,16.1139981,4334.1,4333.0,0.4554]
[1757328876505,2.30760355,4333.5,4333.0,0.4554]
[1757328876691,12.55753397,4333.5,4333.0,0.4554]
[1757328876891,13.82496806,4333.5,4333.1,0.022]
[1757328877415,14.55936428,4333.5,4333.1,0.022]
[1757328878013,15.78936428,4333.5,4333.1,0.022]
[1757328878312,16.90897331,4333.5,4333.1,0.022]
[1757328879314,18.13897331,4333.5,4333.1,0.022]
[1757328879528,6.90410887,4333.5,4333.4,0.3018]
[1757328879733,6.77470151,4333.5,4333.4,0.7552]
[1757328879893,16.80896595,4333.5,4333.4,0.3018]
[1757328880097,16.93835621,4333.5,4333.4,0.3018]
[1757328880582,18.16835621,4333.5,4333.4,0.3018]
[1757328881120,12.02909177,4333.5,4333.4,0.3018]
[1757328881312,18.16835621,4333.5,4333.4,0.3018]
[1757328881831,8.13409177,4333.5,4333.4,1.2484]
[1757328882034,12.00909396,4333.5,4333.4,1.2484]
[1757328882384,12.00909396,4333.5,4333.4,0.7552]
[1757328883524,13.23829396,4333.5,4333.4,0.7552]
[1757328883926,13.36774824,4333.5,4333.4,0.7552]
[1757328884754,14.59774824,4333.5,4333.4,0.7552]
[1757328886047,14.59774824,4333.5,4333.4,0.3018]
[1757328886251,18.09565621,4333.5,4333.4,0.3018]
[1757328886414,18.86625621,4333.5,4333.4,0.002]
[1757328886814,19.29625621,4333.5,4333.4,0.002]
[1757328887751,20.52625621,4333.5,4333.4,0.002]
[1757328889115,20.55565621,4333.5,4333.4,0.002]
[1757328889636,20.86365621,4333.5,4333.4,0.002]
[1757328890347,21.32625621,4333.5,4333.4,0.002]
[1757328890645,22.98625621,4333.5,4333.4,0.002]
[1757328891930,24.21625621,4333.5,4333.4,0.002]
[1757328892861,23.32404491,4333.5,4333.4,0.002]
[1757328893161,23.01604491,4333.5,4333.4,0.002]
[1757328893357,24.24604491,4333.5,4333.4,0.002]
[1757328894351,24.24704491,4333.5,4333.4,0.002]
[1757328894554,24.53494491,4333.5,4333.4,0.002]
[1757328894740,25.76494491,4333.5,4333.4,0.002]
[1757328896130,27.49370524,4333.5,4333.4,0.002]
[1757328896344,26.70810524,4333.5,4333.4,0.002]
[1757328896752,26.99600524,4333.5,4333.4,0.002]
[1757328896953,26.70810524,4333.5,4333.4,0.2912]
[1757328897133,20.54619727,4333.5,4333.4,0.7517]
[1757328897333,24.43919727,4333.5,4333.4,1.2122]
[1757328897567,25.66919727,4333.5,4333.4,1.2122]
[1757328897865,25.04184857,4333.5,4333.4,1.2122]
[1757328898164,25.0418691,4333.5,4333.4,1.2122]
[1757328898363,24.82579389,4333.5,4333.4,1.2122]
[1757328898972,26.05579389,4333.5,4333.4,1.2122]
[1757328900463,27.28579389,4333.5,4333.4,1.2122]
[1757328901958,28.51579389,4333.5,4333.4,1.2122]
[1757328902658,26.034,4333.5,4333.4,1.33582]
[1757328902981,28.34160355,4333.5,4333.4,1.33582]
[1757328903375,29.57160355,4333.5,4333.4,1.33582]
[1757328903582,25.67860355,4333.5,4333.4,1.33582]
[1757328904878,26.90860355,4333.5,4333.4,1.33582]
[1757328905078,26.90860355,4333.5,4333.4,1.2122]
[1757328906282,28.13860355,4333.5,4333.4,0.2912]
[1757328906690,25.831,4333.5,4333.4,0.7517]
[1757328906988,25.831,4333.5,4333.4,1.2122]
[1757328907190,28.13860355,4333.5,4333.4,1.33582]
[1757328907697,29.36860355,4333.5,4333.4,1.33582]
[1757328908884,30.59780355,4333.5,4333.4,1.33582]
[1757328910487,31.82780355,4333.5,4333.4,1.33582]
[1757328911190,32.11570355,4333.5,4333.4,0.002]
[1757328911909,33.05780355,4333.5,4333.4,0.2912]
[1757328912189,33.05780355,4333.5,4333.4,0.7517]
[1757328912952,30.7502,4333.5,4333.4,1.2122]
[1757328913501,31.9802,4333.5,4333.4,1.2122]
[1757328913659,31.9802,4333.5,4333.4,1.33582]
[1757328914500,31.9802,4333.5,4333.4,2.12782]
[1757328914665,33.2102,4333.5,4333.4,2.12782]
[1757328916199,34.4402,4333.5,4333.4,2.12782]
[1757328917765,35.6702,4333.5,4333.4,2.12782]
[1757328919298,36.9002,4333.5,4333.4,2.12782]
[1757328920765,38.1302,4333.5,4333.4,2.12782]
[1757328921168,38.1302,4333.5,4333.4,1.66732]
[1757328922178,39.3602,4333.5,4333.4,1.66732]
[1757328922378,39.3602,4333.5,4333.4,1.5437]
[1757328923567,40.5902,4333.5,4333.4,3.002]
[1757328924782,41.8202,4333.5,4333.4,3.002]
[1757328925783,41.8202,4333.5,4333.4,3.3127]
[1757328926178,43.0502,4333.5,4333.4,3.3127]
[1757328926421,43.0502,4333.5,4333.4,4.2656]
[1757328927366,43.0502,4333.5,4333.4,3.7671]
[1757328927608,44.2802,4333.5,4333.4,3.7671]
[1757328927913,44.2802,4333.5,4333.4,3.3127]
[1757328928214,44.2802,4333.5,4333.4,3.002]
[1757328928518,44.2802,4333.5,4333.4,0.002]
[1757328928674,44.2802,4333.5,4333.4,3.891]
[1757328929070,45.5102,4333.5,4333.4,6.891]
[1757328929322,45.5102,4333.5,4333.4,7.2017]
[1757328929618,45.5102,4333.5,4333.4,8.1546]
[1757328929785,45.5102,4333.5,4333.4,7.6561]
[1757328930504,46.7402,4333.5,4333.4,7.6561]
[1757328931278,46.7402,4333.5,4333.4,7.2017]
[1757328931708,47.9702,4333.5,4333.4,7.2017]
[1757328932879,47.9702,4333.5,4333.4,7.6561]
[1757328933221,49.2002,4333.5,4333.4,7.6561]
[1757328934422,50.4294,4333.5,4333.4,7.6561]
[1757328935819,51.6594,4333.5,4333.4,7.6561]
[1757328936174,51.9454,4333.5,4333.4,6.89]
[1757328937069,53.1754,4333.5,4333.4,6.89]
[1757328938610,54.4054,4333.5,4333.4,6.89]
[1757328939889,55.6354,4333.5,4333.4,6.89]
[1757328940811,55.6354,4333.5,4333.4,3.002]
[1757328941015,55.6354,4333.5,4333.4,6.89]
[1757328941310,56.8654,4333.5,4333.4,3.002]
[1757328941515,57.9062,4333.5,4333.4,6.89]
[1757328941879,56.6946,4333.5,4333.4,7.2007]
[1757328942318,56.6946,4333.5,4333.4,6.89]
[1757328942500,57.9246,4333.5,4333.4,6.89]
[1757328943882,59.4406,4333.5,4333.4,6.89]
[1757328944082,61.74820355,4333.5,4333.4,6.89]
[1757328944285,59.4406,4333.5,4333.4,6.89]
[1757328944596,59.8976,4333.5,4333.4,6.89]
[1757328945186,61.1276,4333.5,4333.4,6.889]
[1757328945394,61.5962,4333.5,4333.4,6.889]
[1757328946031,61.5962,4333.5,4333.4,3.002]
[1757328946235,61.1276,4333.5,4333.4,6.889]
[1757328946429,60.6706,4333.5,4333.4,6.889]
[1757328946732,64.66520355,4333.5,4333.4,6.889]
[1757328946931,65.13380355,4333.5,4333.4,6.889]
[1757328948134,66.36380355,4333.5,4333.4,6.889]
[1757328949313,67.59380355,4333.5,4333.4,6.889]
[1757328950628,68.82380355,4333.5,4333.4,6.889]
[1757328951330,68.82380355,4333.5,4333.4,0.002]
[1757328951633,68.82380355,4333.5,4333.4,3.889]
[1757328951634,71.09171152,4333.5,4333.4,3.889]
[1757328951999,72.32171152,4333.5,4333.4,3.889]
[1757328952194,72.32171152,4333.5,4333.4,0.002]
[1757328952621,76.20771152,4333.5,4333.4,0.002]
[1757328953230,77.43771152,4333.5,4333.4,0.002]
[1757328954716,78.66771152,4333.5,4333.4,0.002]
[1757328954917,78.88403657,4333.5,4333.4,0.002]
[1757328955231,78.66771152,4333.5,4333.4,0.002]
[1757328956150,79.89771152,4333.5,4333.4,0.002]
[1757328957412,81.12771152,4333.5,4333.4,0.002]
[1757328958818,82.35771152,4333.5,4333.4,0.002]
[1757328959016,82.57392584,4333.5,4333.4,0.002]
[1757328959323,83.07204513,4333.5,4333.4,0.002]
[1757328959735,83.07124513,4333.5,4333.4,0.002]
[1757328960131,84.30124513,4333.5,4333.4,0.002]
[1757328960742,84.39368291,4333.5,4333.4,0.002]
[1757328961657,92.8796172,4333.5,4333.4,0.002]
[1757328961837,92.8796172,4333.5,4333.1,0.022]
[1757328961838,93.0093045,4333.5,4333.1,0.022]
[1757328962037,2.30776331,4333.2,4333.1,0.022]
[1757328962243,6.40897763,4333.2,4333.1,0.022]
[1757328962439,8.16149692,4333.2,4333.1,0.022]
[1757328962766,8.65888558,4333.2,4333.1,0.022]
[1757328962926,9.88888558,4333.2,4333.1,0.022]
[1757328963127,11.25358301,4333.2,4333.1,0.022]
[1757328964245,11.04536372,4333.2,4333.1,0.022]
[1757328965327,6.84606372,4333.2,4333.1,0.3152]
[1757328965532,10.73106372,4333.2,4333.1,0.3152]
[1757328965733,11.96106372,4333.2,4333.1,0.3152]
[1757328965952,7.8598494,4333.2,4333.1,0.7847]
[1757328966472,10.38015197,4333.2,4333.1,0.7847]
[1757328967058,10.38015197,4333.2,4333.1,0.3152]
[1757328967249,11.61015197,4333.2,4333.1,0.3152]
[1757328967452,11.61015197,4333.2,4333.1,0.7847]
[1757328968241,11.61015197,4333.2,4333.1,0.3152]
[1757328968837,12.84015197,4333.2,4333.1,0.3152]
[1757328970355,14.07015197,4333.2,4333.1,0.3152]
[1757328971661,15.30015197,4333.2,4333.1,0.3152]
[1757328971863,15.30015197,4333.2,4333.1,0.7847]
[1757328972064,15.30015197,4333.2,4333.1,1.2728]
[1757328972654,15.30015197,4333.2,4333.1,1.40298]
[1757328972655,8.61,4333.2,4333.1,1.40298]
[1757328973062,9.84,4333.2,4333.1,1.40298]
[1757328974479,11.07,4333.2,4333.1,1.40298]
[1757328975748,12.3,4333.2,4333.1,1.40298]
[1757328977282,13.53,4333.2,4333.1,1.40298]
[1757328978384,13.53,4333.2,4333.1,6.71079657]
[1757328978590,14.76,4333.2,4333.1,7.50279657]
[1757328978954,14.76,4333.2,4333.1,8.19590694]
[1757328979679,14.76,4333.2,4333.1,9.77109037]
[1757328979867,15.99,4333.2,4333.1,12.07890694]
[1757328980478,15.99,4333.2,4333.1,9.77109037]
[1757328981052,15.99,4333.2,4333.1,9.28299037]
[1757328981290,17.22,4333.2,4333.1,4.00831037]
[1757328981470,17.22,4333.2,4333.1,7.1982]
[1757328981668,17.5343,4333.2,4333.1,0.022]
[1757328981857,20.78216331,4333.2,4333.1,0.022]
[1757328982453,22.01216331,4333.2,4333.1,0.022]
[1757328982783,22.60221529,4333.2,4333.1,0.022]
[1757328983779,23.83221529,4333.2,4333.1,0.022]
[1757328983992,23.24216331,4333.2,4333.1,0.022]
[1757328985194,24.47136331,4333.2,4333.1,0.022]
[1757328986670,25.70136331,4333.2,4333.1,0.022]
[1757328988124,2.30781657,4333.1,4332.6,0.002]
[1757328988304,8.44889456,4332.7,4332.6,0.002]
[1757328988475,13.34630526,4332.7,4332.6,0.002]
[1757328988980,16.50236974,4332.7,4332.6,0.002]
[1757328989207,2.3080829,4332.6,4332.5,1e-08]
[1757328989379,8.41919708,4332.6,4332.5,1e-08]
[1757328989582,9.59669708,4332.6,4332.5,1e-08]
[1757328990920,10.82669708,4332.6,4332.5,1e-08]
[1757328991430,10.82632112,4332.6,4332.5,1e-08]
[1757328992314,12.05627794,4332.6,4332.5,1e-08]
[1757328993349,11.92688396,4332.6,4332.5,1e-08]
[1757328993735,13.15688396,4332.6,4332.5,1e-08]
[1757328994333,17.03888396,4332.6,4332.5,1e-08]
[1757328995254,18.26888396,4332.6,4332.5,1e-08]
[1757328996127,17.77121948,4332.6,4332.5,1e-08]
[1757328996530,19.00121948,4332.6,4332.5,1e-08]
[1757328996955,25.14208441,4332.6,4332.5,1e-08]
[1757328997379,21.26008441,4332.6,4332.5,1e-08]
[1757328997545,25.14208441,4332.6,4332.5,1e-08]
[1757328997952,26.46455018,4332.6,4332.5,1e-08]
[1757328999240,27.47882157,4332.6,4332.5,1e-08]
[1757329000092,23.16542157,4332.6,4332.5,1e-08]
[1757329000245,27.04742157,4332.6,4332.5,1e-08]
[1757329000757,28.70882157,4332.6,4332.5,1e-08]
[1757329001779,28.27742157,4332.6,4332.5,1e-08]
[1757329001986,29.50742157,4332.6,4332.5,1e-08]
[1757329002157,29.93882157,4332.6,4332.5,1e-08]
[1757329003363,31.16882157,4332.6,4332.5,1e-08]
[1757329004670,32.39882157,4332.6,4332.5,1e-08]
[1757329005310,26.25795664,4332.6,4332.5,1e-08]
[1757329006169,27.48795664,4332.6,4332.5,1e-08]
[1757329007598,28.71795664,4332.6,4332.5,1e-08]
[1757329008304,28.93333471,4332.6,4332.5,1e-08]
[1757329008897,30.16333471,4332.6,4332.5,1e-08]
[1757329010176,30.65988254,4332.6,4332.5,1e-08]
[1757329010507,31.45848254,4332.6,4332.5,1e-08]
[1757329010708,32.01842596,4332.6,4332.5,1e-08]
[1757329011785,33.24842596,4332.6,4332.5,1e-08]
[1757329013209,34.47842596,4332.6,4332.5,1e-08]
[1757329014613,35.70842596,4332.6,4332.5,1e-08]
[1757329016183,36.93842596,4332.6,4332.5,1e-08]
[1757329017207,37.76562357,4332.6,4332.5,1e-08]
[1757329017513,33.88362357,4332.6,4332.5,1e-08]
[1757329017718,38.99462357,4332.6,4332.5,1e-08]
[1757329018283,38.16742596,4332.6,4332.5,1e-08]
[1757329019117,39.39742596,4332.6,4332.5,1e-08]
[1757329019785,39.39842596,4332.6,4332.5,1e-08]
[1757329020517,40.62842596,4332.6,4332.5,1e-08]
[1757329020813,40.19702596,4332.6,4332.5,1e-08]
[1757329021012,39.74202596,4332.6,4332.5,1e-08]
[1757329021617,35.86202596,4332.6,4332.5,1e-08]
[1757329021785,40.67992596,4332.6,4332.5,1e-08]
[1757329022182,40.99562596,4332.6,4332.5,1e-08]
[1757329023203,42.22562596,4332.6,4332.5,1e-08]
[1757329023883,43.11652596,4332.6,4332.5,1e-08]
[1757329025000,42.67842596,4332.6,4332.5,1e-08]
[1757329025214,43.90842596,4332.6,4332.5,1e-08]
[1757329025718,50.96842596,4332.6,4332.5,1e-08]
[1757329026112,43.90842596,4332.6,4332.5,1e-08]
[1757329027521,2.30829601,4332.2,4332.1,1e-08]
[1757329027689,17.52605383,4332.2,4332.1,1e-08]
[1757329027886,17.84175383,4332.2,4332.1,1e-08]
[1757329028312,17.84175383,4332.2,4331.6,0.4705]
[1757329028313,5.30834929,4332.1,4331.6,0.4705]
[1757329028521,8.44942738,4331.7,4331.6,0.4705]
[1757329028714,14.9436967,4331.7,4331.6,0.4705]
[1757329028905,15.46754208,4331.7,4331.6,0.7568]
[1757329030096,16.69754208,4331.7,4331.6,0.7568]
[1757329030831,16.69754208,4331.7,4331.6,1.2197]
[1757329031141,16.1736967,4331.7,4331.6,1.2197]
[1757329031331,16.3430143,4331.7,4331.6,1.2197]
[1757329031633,17.5730143,4331.7,4331.6,1.2197]
[1757329032634,17.5730143,4331.7,4331.6,0.7568]
[1757329032809,18.8030143,4331.7,4331.6,0.7568]
[1757329033012,20.14731756,4331.7,4331.6,0.7568]
[1757329033336,20.14731756,4331.7,4331.6,0.2863]
[1757329033500,19.93193949,4331.7,4331.6,0.2863]
[1757329033701,20.14875842,4331.7,4331.6,0.2863]
[1757329033895,2.30872235,4331.4,4331.3,0.4629]
[1757329034138,13.77493875,4331.4,4331.3,0.4629]
[1757329034343,8.13062165,4331.4,4331.3,0.4629]
[1757329034643,4.25162165,4331.4,4331.3,1.2197]
[1757329034818,7.63407382,4331.4,4331.3,1.2197]
[1757329035342,3.75507382,4331.4,4331.3,1.2197]
[1757329035638,8.86407382,4331.4,4331.3,1.2197]
[1757329036138,8.86327382,4331.4,4331.3,1.2197]
[1757329036642,9.36175554,4331.4,4331.3,0.2863]
[1757329036942,10.72157501,4331.4,4331.3,0.7568]
[1757329037240,10.72164735,4331.4,4331.3,0.7568]
[1757329038144,11.95164735,4331.4,4331.3,0.7568]
[1757329039308,2.30882896,4331.2,4330.8,0.4955]
[1757329039545,6.40418043,4331.2,4330.8,0.025]
[1757329039842,6.90273449,4331.2,4331.1,0.7768]
[1757329040912,8.13273449,4331.2,4331.1,0.7768]
[1757329042427,9.36273449,4331.2,4331.1,0.7768]
[1757329043661,10.59273449,4331.2,4331.1,0.7768]
[1757329045863,11.82273449,4331.2,4331.1,0.7768]
[1757329046019,11.95252371,4331.2,4331.1,0.3063]
[1757329046214,11.95251899,4331.2,4331.1,0.3063]
[1757329046764,11.82273449,4331.2,4331.1,0.3063]
[1757329047454,13.05273449,4331.2,4331.1,0.02]
[1757329048170,13.05273449,4331.2,4331.1,0.3242]
[1757329048740,14.28273449,4331.2,4331.1,0.3242]
[1757329050189,15.51273449,4331.2,4331.1,0.3242]
[1757329051054,15.6425187,4331.2,4331.1,0.3242]
[1757329051284,15.51273449,4331.2,4331.1,0.3242]
[1757329051586,16.74273449,4331.2,4331.1,0.3242]
[1757329051781,16.74273449,4331.2,4331.1,0.7733]
[1757329052146,16.87252402,4331.2,4331.1,0.7733]
[1757329053405,18.10252402,4331.2,4331.1,0.7733]
[1757329053908,18.10252402,4331.2,4331.1,0.7753]
[1757329054685,19.33252402,4331.2,4331.1,0.7753]
[1757329055288,19.33258326,4331.2,4331.1,1.2651]
[1757329055702,19.33258326,4331.2,4331.1,0.7753]
[1757329056217,20.56258326,4331.2,4331.1,1.2651]
[1757329056515,20.56258326,4331.2,4331.1,0.7753]
[1757329057915,21.79258326,4331.2,4331.1,0.7753]
[1757329058089,21.79258326,4331.2,4331.1,1.2651]
[1757329058487,21.79258326,4331.2,4331.1,0.7753]
[1757329059013,21.7926651,4331.2,4331.1,0.3262]
[1757329059214,23.0226651,4331.2,4331.1,0.3262]
[1757329059980,23.0226651,4331.2,4331.1,0.022]
[1757329060601,24.2526651,4331.2,4331.1,0.022]
[1757329060795,25.51087704,4331.2,4331.1,0.022]
[1757329061117,25.20047704,4331.2,4331.1,0.022]
[1757329061315,25.51087704,4331.2,4331.1,0.022]
[1757329061536,25.51007704,4331.2,4331.1,0.022]
[1757329061906,26.74007704,4331.2,4331.1,0.022]
[1757329062107,27.67577704,4331.2,4331.1,0.022]
[1757329062508,27.22277704,4331.2,4331.1,0.022]
[1757329062916,26.74007704,4331.2,4331.1,0.022]
[1757329063115,27.65967704,4331.2,4331.1,0.022]
[1757329064823,29.20007704,4331.2,4331.1,0.022]
[1757329065924,27.9418651,4331.2,4331.1,0.3262]
[1757329066133,24.0628651,4331.2,4331.1,1.2651]
[1757329066338,22.98483614,4331.2,4331.1,1.2651]
[1757329066632,22.14,4331.2,4331.1,1.2651]
[1757329066840,24.44882896,4331.2,4331.1,1.2651]
[1757329067010,22.64,4331.2,4331.1,1.2651]
[1757329067337,24.94882896,4331.2,4331.1,1.39411]
[1757329067706,26.17882896,4331.2,4331.1,1.39411]
[1757329069153,27.40882896,4331.2,4331.1,1.39411]
[1757329070544,28.63882896,4331.2,4331.1,1.39411]
[1757329070958,28.13882896,4331.2,4331.1,1.39411]
[1757329072052,27.06,4331.2,4331.1,1.39411]
[1757329073264,30.59882896,4331.2,4331.1,1.39411]
[1757329073460,28.29,4331.2,4331.1,1.39411]
[1757329073757,28.291,4331.2,4331.1,1.39411]
[1757329074135,30.59982896,4331.2,4331.1,1.39411]
[1757329074330,28.291,4331.2,4331.1,1.39411]
[1757329074555,29.521,4331.2,4331.1,1.39411]
[1757329075949,30.751,4331.2,4331.1,1.39411]
[1757329077485,31.981,4331.2,4331.1,1.39411]
[1757329078256,34.28982896,4331.2,4331.1,1.39411]
[1757329078776,31.981,4331.2,4331.1,1.39411]